[Event "Late-Titled-Tuesday-Blitz-May-28-2024"]
[Site "Chess.com"]
[Date "2024.05.28"]
[Round "10"]
[White "KNVB"]
[Black "Oleksandr_Bortnyk"]
[Result "0-1"]
[WhiteElo "2787"]
[BlackElo "3025"]
[TimeControl "180+1"]
[EndTime "15:54:19 PDT"]
[Termination "Oleksandr_Bortnyk won on time"]

1. e4 {[%clk 0:03:00.9]} 1... Nf6 {[%clk 0:02:59.8]} 2. Nc3 {[%clk 0:02:57.2]}
2... d5 {[%clk 0:02:59.7]} 3. Nf3 {[%clk 0:02:34.3]} 3... dxe4 {[%clk
0:02:59.5]} 4. Ng5 {[%clk 0:02:34.3]} 4... Bf5 {[%clk 0:02:59.4]} 5. Qe2 {[%clk
0:02:34.3]} 5... Nc6 {[%clk 0:02:53.6]} 6. Ngxe4 {[%clk 0:02:21.2]} 6... Nd4
{[%clk 0:02:36.7]} 7. Qd3 {[%clk 0:02:14.1]} 7... e5 {[%clk 0:02:22.7]} 8. f3
{[%clk 0:01:45.5]} 8... Bb4 {[%clk 0:02:21]} 9. Nxf6+ {[%clk 0:01:07.5]} 9...
Qxf6 {[%clk 0:02:11.6]} 10. Ne4 {[%clk 0:01:08.4]} 10... Qh4+ {[%clk 0:02:06.9]}
11. Kd1 {[%clk 0:00:27.8]} 11... O-O-O {[%clk 0:01:22.8]} 12. c3 {[%clk
0:00:28]} 12... Nxf3 {[%clk 0:00:48.8]} 13. Nd6+ {[%clk 0:00:26.2]} 13... Kb8
{[%clk 0:00:49.3]} 14. Qxf5 {[%clk 0:00:13.1]} 14... Qe1+ {[%clk 0:00:49.6]} 15.
Kc2 {[%clk 0:00:13.7]} 15... Nd4+ {[%clk 0:00:49.5]} 16. cxd4 {[%clk 0:00:12.5]}
16... Rxd6 {[%clk 0:00:46.9]} 17. d5 {[%clk 0:00:02.9]} 17... Rhd8 {[%clk
0:00:36.7]} 18. a3 {[%clk 0:00:03.1]} 18... Bxd2 {[%clk 0:00:22.8]} 19. Bxd2
{[%clk 0:00:03]} 19... Qxa1 {[%clk 0:00:23.7]} 20. Bd3 {[%clk 0:00:02.8]} 20...
Qxh1 {[%clk 0:00:23.3]} 21. Qxf7 {[%clk 0:00:03]} 21... Qxg2 {[%clk 0:00:22]}
0-1

[Event "Late-Titled-Tuesday-Blitz-May-28-2024"]
[Site "Chess.com"]
[Date "2024.05.28"]
[Round "10"]
[White "Chaubunagungamaug1"]
[Black "brunoo2003"]
[Result "0-1"]
[WhiteElo "2469"]
[BlackElo "2593"]
[TimeControl "180+1"]
[EndTime "15:54:22 PDT"]
[Termination "brunoo2003 won by resignation"]

1. e4 {[%clk 0:02:59.5]} 1... c5 {[%clk 0:02:11.8]} 2. Nf3 {[%clk 0:02:59.2]}
2... Nc6 {[%clk 0:02:11.8]} 3. d4 {[%clk 0:02:56.7]} 3... cxd4 {[%clk
0:02:12.7]} 4. Nxd4 {[%clk 0:02:57.6]} 4... e5 {[%clk 0:02:13.4]} 5. Nb5 {[%clk
0:02:56.5]} 5... a6 {[%clk 0:02:13.9]} 6. Nd6+ {[%clk 0:02:56.2]} 6... Bxd6
{[%clk 0:02:14.3]} 7. Qxd6 {[%clk 0:02:57.1]} 7... Qf6 {[%clk 0:02:14.6]} 8.
Qxf6 {[%clk 0:02:38]} 8... Nxf6 {[%clk 0:02:15.5]} 9. Nc3 {[%clk 0:02:38.8]}
9... Nb4 {[%clk 0:02:07.2]} 10. Bd3 {[%clk 0:02:36.3]} 10... d6 {[%clk
0:01:53.2]} 11. Bg5 {[%clk 0:02:34.5]} 11... Nxd3+ {[%clk 0:01:15.5]} 12. cxd3
{[%clk 0:02:33.8]} 12... Be6 {[%clk 0:01:16]} 13. Bxf6 {[%clk 0:02:22.4]} 13...
gxf6 {[%clk 0:01:13.5]} 14. O-O {[%clk 0:02:19.4]} 14... b5 {[%clk 0:01:07.4]}
15. b4 {[%clk 0:02:07.2]} 15... Rc8 {[%clk 0:01:05.8]} 16. Rac1 {[%clk 0:02:05]}
16... Kd7 {[%clk 0:01:01.5]} 17. f4 {[%clk 0:02:04]} 17... exf4 {[%clk
0:00:51.1]} 18. Rxf4 {[%clk 0:02:04.9]} 18... Rc7 {[%clk 0:00:49.8]} 19. Rf2
{[%clk 0:01:04.5]} 19... Rhc8 {[%clk 0:00:45.4]} 20. Rfc2 {[%clk 0:01:04.7]}
20... a5 {[%clk 0:00:33.8]} 21. bxa5 {[%clk 0:00:19.6]} 21... b4 {[%clk
0:00:33.2]} 22. Nd5 {[%clk 0:00:20.3]} 22... Rxc2 {[%clk 0:00:31.8]} 23. Nb6+
{[%clk 0:00:20.4]} 23... Kd8 {[%clk 0:00:30.7]} 24. Rb1 {[%clk 0:00:11]} 24...
Rc1+ {[%clk 0:00:29.7]} 25. Rxc1 {[%clk 0:00:11.5]} 25... Rxc1+ {[%clk
0:00:29.9]} 26. Kf2 {[%clk 0:00:12.4]} 26... Rc2+ {[%clk 0:00:30.6]} 27. Kg3
{[%clk 0:00:12.7]} 27... Rxa2 {[%clk 0:00:31.2]} 0-1

[Event "Late-Titled-Tuesday-Blitz-May-28-2024"]
[Site "Chess.com"]
[Date "2024.05.28"]
[Round "10"]
[White "MatthewG-p4p"]
[Black "ozates"]
[Result "1-0"]
[WhiteElo "2840"]
[BlackElo "2623"]
[TimeControl "180+1"]
[EndTime "15:54:23 PDT"]
[Termination "MatthewG-p4p won on time"]

1. e4 {[%clk 0:02:52.5]} 1... c5 {[%clk 0:02:59]} 2. c3 {[%clk 0:02:52.6]} 2...
d5 {[%clk 0:02:59]} 3. exd5 {[%clk 0:02:53.5]} 3... Nf6 {[%clk 0:02:59.5]} 4.
Qa4+ {[%clk 0:02:52]} 4... Nbd7 {[%clk 0:02:59.1]} 5. Qb3 {[%clk 0:02:51]} 5...
g6 {[%clk 0:02:59.1]} 6. Nf3 {[%clk 0:02:47.6]} 6... Bg7 {[%clk 0:02:59.3]} 7.
Be2 {[%clk 0:02:48.1]} 7... O-O {[%clk 0:02:59.5]} 8. O-O {[%clk 0:02:48.2]}
8... Nb6 {[%clk 0:02:57.9]} 9. c4 {[%clk 0:02:48.4]} 9... e6 {[%clk 0:02:58.5]}
10. dxe6 {[%clk 0:02:49.3]} 10... Bxe6 {[%clk 0:02:59.1]} 11. Nc3 {[%clk
0:02:49.9]} 11... Re8 {[%clk 0:02:52.7]} 12. d3 {[%clk 0:02:46.2]} 12... h6
{[%clk 0:02:42.8]} 13. a4 {[%clk 0:02:40.7]} 13... Bf5 {[%clk 0:02:32.3]} 14. a5
{[%clk 0:02:39.6]} 14... Nc8 {[%clk 0:02:32]} 15. Qxb7 {[%clk 0:02:37.5]} 15...
Nd6 {[%clk 0:02:31.9]} 16. Qb3 {[%clk 0:02:35.1]} 16... Rb8 {[%clk 0:02:24.3]}
17. Qa3 {[%clk 0:02:34.7]} 17... Ng4 {[%clk 0:02:14.4]} 18. Re1 {[%clk 0:02:06]}
18... Bxd3 {[%clk 0:01:46.6]} 19. Bxd3 {[%clk 0:01:57.4]} 19... Rxe1+ {[%clk
0:01:45.4]} 20. Nxe1 {[%clk 0:01:58.3]} 20... Qh4 {[%clk 0:01:45.7]} 21. Qxc5
{[%clk 0:01:48.2]} 21... Qxh2+ {[%clk 0:01:43.9]} 22. Kf1 {[%clk 0:01:48.3]}
22... Re8 {[%clk 0:01:11.1]} 23. Be3 {[%clk 0:01:45.9]} 23... Rxe3 {[%clk
0:00:47.3]} 24. fxe3 {[%clk 0:01:42]} 24... Bxc3 {[%clk 0:00:47]} 25. bxc3
{[%clk 0:01:39.3]} 25... Qg3 {[%clk 0:00:46.9]} 26. Ra2 {[%clk 0:01:28.5]} 26...
Nxe3+ {[%clk 0:00:45.5]} 27. Ke2 {[%clk 0:01:27.9]} 27... Ng4 {[%clk 0:00:21.3]}
28. Rb2 {[%clk 0:01:19.1]} 28... Kh7 {[%clk 0:00:07.9]} 29. Qd4 {[%clk
0:01:10.4]} 29... Nf5 {[%clk 0:00:01.8]} 30. Bxf5 {[%clk 0:01:02.1]} 30... gxf5
{[%clk 0:00:02.7]} 31. Rb7 {[%clk 0:00:58.2]} 31... Kg6 {[%clk 0:00:02.2]} 32.
Rxa7 {[%clk 0:00:53.5]} 32... Ne5 {[%clk 0:00:01.5]} 33. Ra6+ {[%clk 0:00:52.8]}
33... f6 {[%clk 0:00:01.5]} 34. Ra8 {[%clk 0:00:51]} 1-0

[Event "Late-Titled-Tuesday-Blitz-May-28-2024"]
[Site "Chess.com"]
[Date "2024.05.28"]
[Round "10"]
[White "Felix-Rose"]
[Black "dealshark"]
[Result "0-1"]
[WhiteElo "2298"]
[BlackElo "2429"]
[TimeControl "180+1"]
[EndTime "15:54:25 PDT"]
[Termination "dealshark won on time"]

1. e4 {[%clk 0:02:59.7]} 1... c6 {[%clk 0:02:57.4]} 2. d4 {[%clk 0:02:58.5]}
2... d5 {[%clk 0:02:58.3]} 3. e5 {[%clk 0:02:58.1]} 3... c5 {[%clk 0:02:58.6]}
4. dxc5 {[%clk 0:02:54.9]} 4... e6 {[%clk 0:02:59.1]} 5. a3 {[%clk 0:02:54.6]}
5... Bxc5 {[%clk 0:02:59.6]} 6. Nf3 {[%clk 0:02:54.7]} 6... Nc6 {[%clk
0:02:58.7]} 7. b4 {[%clk 0:02:52.2]} 7... Bb6 {[%clk 0:02:57.9]} 8. Bb2 {[%clk
0:02:52.1]} 8... Nge7 {[%clk 0:02:58]} 9. Bd3 {[%clk 0:02:51.1]} 9... Ng6 {[%clk
0:02:57.9]} 10. O-O {[%clk 0:02:50.5]} 10... O-O {[%clk 0:02:58.1]} 11. Re1
{[%clk 0:02:49.6]} 11... f6 {[%clk 0:02:56.9]} 12. exf6 {[%clk 0:02:45.2]} 12...
gxf6 {[%clk 0:02:56.6]} 13. c4 {[%clk 0:02:44.9]} 13... Nf4 {[%clk 0:02:39.7]}
14. Bf1 {[%clk 0:02:35.6]} 14... dxc4 {[%clk 0:02:38.3]} 15. Qxd8 {[%clk
0:02:32.2]} 15... Rxd8 {[%clk 0:02:34.9]} 16. Bxc4 {[%clk 0:02:32.4]} 16... Kg7
{[%clk 0:02:33.5]} 17. Nbd2 {[%clk 0:02:13.3]} 17... e5 {[%clk 0:02:29.2]} 18.
Ne4 {[%clk 0:02:04.5]} 18... Bf5 {[%clk 0:02:23.9]} 19. b5 {[%clk 0:01:11.9]}
19... Na5 {[%clk 0:02:17.8]} 20. Bf1 {[%clk 0:01:04.4]} 20... Nd3 {[%clk
0:02:09.8]} 21. Bxd3 {[%clk 0:00:49.8]} 21... Rxd3 {[%clk 0:02:09.7]} 22. Ng3
{[%clk 0:00:34]} 22... Bg6 {[%clk 0:02:01.8]} 23. Rac1 {[%clk 0:00:25.7]} 23...
Rad8 {[%clk 0:01:58]} 24. Bc3 {[%clk 0:00:23.8]} 24... Nb3 {[%clk 0:01:55.8]}
25. Rc2 {[%clk 0:00:18]} 25... Rxf3 {[%clk 0:01:48.7]} 26. gxf3 {[%clk
0:00:18.6]} 26... Bxc2 {[%clk 0:01:48.8]} 27. f4 {[%clk 0:00:18.3]} 27... Bd4
{[%clk 0:01:36.9]} 28. Bb4 {[%clk 0:00:17.6]} 28... Re8 {[%clk 0:01:15.8]} 29.
fxe5 {[%clk 0:00:15.4]} 29... Rxe5 {[%clk 0:01:11.6]} 30. Rxe5 {[%clk
0:00:10.4]} 30... fxe5 {[%clk 0:01:11]} 31. Kg2 {[%clk 0:00:09.3]} 31... Bd3
{[%clk 0:01:10.6]} 32. Bd6 {[%clk 0:00:07.3]} 32... Bxb5 {[%clk 0:01:08.9]} 33.
Nf5+ {[%clk 0:00:04.8]} 33... Kf6 {[%clk 0:01:07.6]} 34. Nxd4 {[%clk 0:00:05.6]}
34... exd4 {[%clk 0:01:07.5]} 35. Kf3 {[%clk 0:00:05]} 35... Bc6+ {[%clk
0:01:03.3]} 36. Ke2 {[%clk 0:00:04.5]} 36... Be4 {[%clk 0:01:01.8]} 37. f3
{[%clk 0:00:03.7]} 37... Bf5 {[%clk 0:01:01]} 38. a4 {[%clk 0:00:01.1]} 38...
Ke6 {[%clk 0:01:01.1]} 39. Bb8 {[%clk 0:00:01]} 39... a6 {[%clk 0:01:01.2]} 40.
Ba7 {[%clk 0:00:01.5]} 40... Kd5 {[%clk 0:01:01.9]} 0-1

[Event "Late-Titled-Tuesday-Blitz-May-28-2024"]
[Site "Chess.com"]
[Date "2024.05.28"]
[Round "10"]
[White "Magicmaster17"]
[Black "Statham_01"]
[Result "1-0"]
[WhiteElo "2876"]
[BlackElo "2698"]
[TimeControl "180+1"]
[EndTime "15:54:28 PDT"]
[Termination "Magicmaster17 won on time"]

1. d4 {[%clk 0:03:00.9]} 1... d5 {[%clk 0:02:59.1]} 2. Nf3 {[%clk 0:03:00.6]}
2... Nf6 {[%clk 0:02:58.8]} 3. c4 {[%clk 0:03:01.1]} 3... e6 {[%clk 0:02:57.1]}
4. cxd5 {[%clk 0:03:01.6]} 4... exd5 {[%clk 0:02:57.4]} 5. Nc3 {[%clk
0:03:01.7]} 5... c6 {[%clk 0:02:57.5]} 6. Bf4 {[%clk 0:03:00.8]} 6... Bd6 {[%clk
0:02:57.6]} 7. Bxd6 {[%clk 0:03:00.4]} 7... Qxd6 {[%clk 0:02:58.5]} 8. e3 {[%clk
0:03:00.7]} 8... Bf5 {[%clk 0:02:56]} 9. Nh4 {[%clk 0:03:00.3]} 9... Bg4 {[%clk
0:02:43.9]} 10. Qb3 {[%clk 0:02:56.6]} 10... Nbd7 {[%clk 0:02:40.5]} 11. h3
{[%clk 0:02:56.5]} 11... Be6 {[%clk 0:02:38.9]} 12. Bd3 {[%clk 0:02:54.5]} 12...
O-O {[%clk 0:02:37]} 13. O-O {[%clk 0:02:46.9]} 13... Rab8 {[%clk 0:02:37]} 14.
f4 {[%clk 0:02:36.2]} 14... c5 {[%clk 0:02:04.9]} 15. Qa3 {[%clk 0:02:32.9]}
15... g6 {[%clk 0:00:49.9]} 16. f5 {[%clk 0:02:32.9]} 16... Bxf5 {[%clk
0:00:47.4]} 17. Bxf5 {[%clk 0:02:29.5]} 17... gxf5 {[%clk 0:00:47.7]} 18. Nxf5
{[%clk 0:02:30.4]} 18... Qe6 {[%clk 0:00:45.7]} 19. dxc5 {[%clk 0:02:29.5]}
19... Kh8 {[%clk 0:00:41.1]} 20. Nb5 {[%clk 0:02:18.8]} 20... Rg8 {[%clk
0:00:37.1]} 21. Nbd6 {[%clk 0:02:15.8]} 21... Ne5 {[%clk 0:00:20.3]} 22. Qc3
{[%clk 0:02:11.2]} 22... Rbf8 {[%clk 0:00:15.5]} 23. Nh6 {[%clk 0:01:56.6]}
23... Rg6 {[%clk 0:00:09.5]} 24. Qxe5 {[%clk 0:01:51.8]} 24... Rxh6 {[%clk
0:00:04]} 25. Rf5 {[%clk 0:01:30.7]} 25... Rg6 {[%clk 0:00:03.1]} 26. Raf1
{[%clk 0:01:28.8]} 26... Qxe5 {[%clk 0:00:03.2]} 27. Rxe5 {[%clk 0:01:29.1]}
27... Kg7 {[%clk 0:00:03.6]} 28. Ref5 {[%clk 0:01:24]} 28... b6 {[%clk
0:00:02.3]} 29. c6 {[%clk 0:01:22.7]} 29... Ne4 {[%clk 0:00:02]} 30. Rxf7+
{[%clk 0:01:21]} 30... Rxf7 {[%clk 0:00:02.4]} 31. Rxf7+ {[%clk 0:01:19.6]}
31... Kh6 {[%clk 0:00:03]} 32. Nf5+ {[%clk 0:01:19.1]} 32... Kg5 {[%clk
0:00:03]} 33. c7 {[%clk 0:01:18.9]} 33... Rc6 {[%clk 0:00:03.5]} 34. Rf8 {[%clk
0:01:12.1]} 34... Rxc7 {[%clk 0:00:03.3]} 35. Nd4 {[%clk 0:00:58.4]} 35... Rc1+
{[%clk 0:00:03.9]} 36. Rf1 {[%clk 0:00:58]} 36... h5 {[%clk 0:00:04.8]} 37. Rxc1
{[%clk 0:00:57.8]} 1-0

[Event "Late-Titled-Tuesday-Blitz-May-28-2024"]
[Site "Chess.com"]
[Date "2024.05.28"]
[Round "10"]
[White "jcibarra"]
[Black "JonasGallasch"]
[Result "1-0"]
[WhiteElo "2888"]
[BlackElo "2494"]
[TimeControl "180+1"]
[EndTime "15:54:29 PDT"]
[Termination "jcibarra won by checkmate"]

1. e4 {[%clk 0:03:00.9]} 1... c6 {[%clk 0:02:58.2]} 2. Nf3 {[%clk 0:02:59.6]}
2... d5 {[%clk 0:02:59.1]} 3. d3 {[%clk 0:02:59.9]} 3... dxe4 {[%clk 0:02:59]}
4. dxe4 {[%clk 0:03:00.1]} 4... Qxd1+ {[%clk 0:02:59.7]} 5. Kxd1 {[%clk
0:03:00.8]} 5... Nf6 {[%clk 0:02:58]} 6. Bd2 {[%clk 0:02:59.7]} 6... Nxe4 {[%clk
0:02:55.6]} 7. Be3 {[%clk 0:02:42.3]} 7... Nd7 {[%clk 0:02:55.2]} 8. c3 {[%clk
0:02:40.4]} 8... Ndf6 {[%clk 0:02:54.6]} 9. h3 {[%clk 0:02:39.5]} 9... Nd5
{[%clk 0:02:52.7]} 10. Bd4 {[%clk 0:02:36.2]} 10... f6 {[%clk 0:02:33.9]} 11.
Bd3 {[%clk 0:02:35.5]} 11... Nd6 {[%clk 0:02:33.5]} 12. Re1 {[%clk 0:02:32.9]}
12... Bf5 {[%clk 0:02:32.4]} 13. Bf1 {[%clk 0:02:23.6]} 13... e5 {[%clk
0:02:18.4]} 14. Nbd2 {[%clk 0:02:19.5]} 14... Be7 {[%clk 0:02:17.3]} 15. Bc5
{[%clk 0:02:15.9]} 15... b6 {[%clk 0:02:08.3]} 16. Ba3 {[%clk 0:02:15.2]} 16...
Nf4 {[%clk 0:01:46.9]} 17. Nxe5 {[%clk 0:02:01.6]} 17... fxe5 {[%clk 0:01:42.9]}
18. Rxe5 {[%clk 0:02:02.5]} 18... c5 {[%clk 0:01:38]} 19. b4 {[%clk 0:01:50.9]}
19... Ng6 {[%clk 0:01:32.6]} 20. Re3 {[%clk 0:01:42.5]} 20... cxb4 {[%clk
0:01:18.2]} 21. Bxb4 {[%clk 0:01:41.9]} 21... Rd8 {[%clk 0:01:18.2]} 22. g4
{[%clk 0:01:38.3]} 22... Bc8 {[%clk 0:01:14]} 23. Bd3 {[%clk 0:01:35.1]} 23...
Bb7 {[%clk 0:01:04.5]} 24. Kc2 {[%clk 0:01:33.9]} 24... Kf7 {[%clk 0:01:00.4]}
25. Rae1 {[%clk 0:01:34.2]} 25... Rhe8 {[%clk 0:00:55]} 26. Nc4 {[%clk
0:01:28.6]} 26... Nc8 {[%clk 0:00:34.9]} 27. Bxg6+ {[%clk 0:01:11.5]} 27... hxg6
{[%clk 0:00:34.1]} 28. Ne5+ {[%clk 0:01:12]} 28... Kf6 {[%clk 0:00:23.8]} 29.
g5+ {[%clk 0:01:09]} 29... Kf5 {[%clk 0:00:20.5]} 30. Nf7 {[%clk 0:01:08.6]}
30... Rd7 {[%clk 0:00:13.9]} 31. Ne5 {[%clk 0:00:58.2]} 31... Rc7 {[%clk
0:00:13.4]} 32. Nd3 {[%clk 0:00:51.6]} 32... Bxb4 {[%clk 0:00:11.9]} 33. Re5+
{[%clk 0:00:28]} 33... Rxe5 {[%clk 0:00:11.4]} 34. Rxe5# {[%clk 0:00:28.9]} 1-0

[Event "Late-Titled-Tuesday-Blitz-May-28-2024"]
[Site "Chess.com"]
[Date "2024.05.28"]
[Round "10"]
[White "Juliana_Figueira"]
[Black "Arteler"]
[Result "0-1"]
[WhiteElo "1947"]
[BlackElo "2206"]
[TimeControl "180+1"]
[EndTime "15:54:31 PDT"]
[Termination "Arteler won on time"]

1. d4 {[%clk 0:02:59.3]} 1... d5 {[%clk 0:02:55.7]} 2. c4 {[%clk 0:02:59.3]}
2... c6 {[%clk 0:02:56.3]} 3. Nf3 {[%clk 0:02:56.1]} 3... Nf6 {[%clk 0:02:56.7]}
4. Qc2 {[%clk 0:02:56]} 4... e6 {[%clk 0:02:55.2]} 5. e3 {[%clk 0:02:55.3]} 5...
Nbd7 {[%clk 0:02:52]} 6. Bd3 {[%clk 0:02:54]} 6... Be7 {[%clk 0:02:50]} 7. O-O
{[%clk 0:02:53.4]} 7... O-O {[%clk 0:02:49.5]} 8. Nbd2 {[%clk 0:02:53.3]} 8...
h6 {[%clk 0:02:49.4]} 9. e4 {[%clk 0:02:53.4]} 9... dxe4 {[%clk 0:02:41.3]} 10.
Nxe4 {[%clk 0:02:54.3]} 10... Nxe4 {[%clk 0:02:39.8]} 11. Bxe4 {[%clk
0:02:55.2]} 11... Nf6 {[%clk 0:02:39.8]} 12. Bd3 {[%clk 0:02:48.5]} 12... b6
{[%clk 0:02:32.6]} 13. Be3 {[%clk 0:02:48]} 13... Bb7 {[%clk 0:02:32.4]} 14.
Rfd1 {[%clk 0:02:46]} 14... Qc7 {[%clk 0:02:31.9]} 15. Ne5 {[%clk 0:02:43.8]}
15... c5 {[%clk 0:02:28.6]} 16. Bf4 {[%clk 0:02:31.7]} 16... Bd6 {[%clk
0:02:12.2]} 17. Qc3 {[%clk 0:01:43.9]} 17... Nh5 {[%clk 0:02:07.3]} 18. dxc5
{[%clk 0:01:16.2]} 18... Qxc5 {[%clk 0:01:50.6]} 19. Nd7 {[%clk 0:00:29]} 19...
Qc6 {[%clk 0:01:39.3]} 20. Bf1 {[%clk 0:00:18.7]} 20... Nxf4 {[%clk 0:01:26.1]}
21. Nxf8 {[%clk 0:00:18.7]} 21... Ne2+ {[%clk 0:01:01.6]} 22. Kh1 {[%clk
0:00:07.3]} 22... Nxc3 {[%clk 0:00:59.6]} 23. bxc3 {[%clk 0:00:05.8]} 23... Rxf8
{[%clk 0:00:55.4]} 24. Rd2 {[%clk 0:00:04.1]} 24... Bf4 {[%clk 0:00:53.7]} 25.
Rd3 {[%clk 0:00:03.8]} 25... Rc8 {[%clk 0:00:51.1]} 26. Rad1 {[%clk 0:00:03.2]}
26... Kh7 {[%clk 0:00:47.1]} 27. Rd7 {[%clk 0:00:00.5]} 27... Rc7 {[%clk
0:00:41.9]} 28. f3 {[%clk 0:00:01.4]} 28... Rxd7 {[%clk 0:00:41.1]} 0-1

[Event "Late-Titled-Tuesday-Blitz-May-28-2024"]
[Site "Chess.com"]
[Date "2024.05.28"]
[Round "10"]
[White "subham777"]
[Black "Dexter_Dyke"]
[Result "1-0"]
[WhiteElo "2565"]
[BlackElo "2442"]
[TimeControl "180+1"]
[EndTime "15:54:33 PDT"]
[Termination "subham777 won by resignation"]

1. e4 {[%clk 0:03:00.9]} 1... e6 {[%clk 0:03:00]} 2. Nf3 {[%clk 0:03:00.5]} 2...
a6 {[%clk 0:03:00.2]} 3. d4 {[%clk 0:03:00.3]} 3... b5 {[%clk 0:03:00.5]} 4. a4
{[%clk 0:02:59]} 4... b4 {[%clk 0:02:59.8]} 5. Bd3 {[%clk 0:02:55.9]} 5... Bb7
{[%clk 0:03:00.3]} 6. Qe2 {[%clk 0:02:55.5]} 6... c5 {[%clk 0:03:00.9]} 7. O-O
{[%clk 0:02:51.2]} 7... cxd4 {[%clk 0:02:59.7]} 8. Nxd4 {[%clk 0:02:50.3]} 8...
Qc7 {[%clk 0:02:57.9]} 9. Be3 {[%clk 0:02:47.2]} 9... Nf6 {[%clk 0:02:56.2]} 10.
Nd2 {[%clk 0:02:46.4]} 10... Nc6 {[%clk 0:02:56.3]} 11. Nxc6 {[%clk 0:02:45.2]}
11... Qxc6 {[%clk 0:02:53.2]} 12. Nb3 {[%clk 0:02:43.7]} 12... Qc7 {[%clk
0:02:47.4]} 13. f4 {[%clk 0:02:36.9]} 13... d5 {[%clk 0:02:42.1]} 14. e5 {[%clk
0:02:34.6]} 14... Ne4 {[%clk 0:02:39]} 15. Bxe4 {[%clk 0:02:27.1]} 15... dxe4
{[%clk 0:02:39]} 16. f5 {[%clk 0:02:18.2]} 16... Qxe5 {[%clk 0:02:32.9]} 17. Bd4
{[%clk 0:02:14.7]} 17... Qd5 {[%clk 0:02:30.8]} 18. fxe6 {[%clk 0:02:12.1]}
18... Qxe6 {[%clk 0:02:29.4]} 19. Rad1 {[%clk 0:02:09.4]} 19... Rc8 {[%clk
0:02:20.2]} 20. Qf2 {[%clk 0:01:54]} 20... f6 {[%clk 0:02:11.9]} 21. Qg3 {[%clk
0:01:47.3]} 21... Bd6 {[%clk 0:01:54.5]} 22. Qxg7 {[%clk 0:01:40.6]} 22... Rg8
{[%clk 0:01:54.3]} 23. Qxb7 {[%clk 0:01:34.8]} 23... Qh3 {[%clk 0:01:33.5]} 24.
Qxe4+ {[%clk 0:01:25.7]} 24... Kd7 {[%clk 0:01:23.8]} 25. Qf5+ {[%clk
0:01:25.2]} 25... Qxf5 {[%clk 0:01:23.2]} 26. Rxf5 {[%clk 0:01:26.1]} 26... Rxc2
{[%clk 0:01:22.6]} 27. Bf2 {[%clk 0:01:19.8]} 27... Ke6 {[%clk 0:01:04.5]} 28.
Nd4+ {[%clk 0:01:18.4]} 28... Kf7 {[%clk 0:00:53]} 29. Nxc2 {[%clk 0:01:19.3]}
29... Rxg2+ {[%clk 0:00:53.4]} 30. Kxg2 {[%clk 0:01:19.1]} 30... Bxh2 {[%clk
0:00:52.3]} 31. Kxh2 {[%clk 0:01:18.8]} 31... h5 {[%clk 0:00:53.1]} 32. Kh1
{[%clk 0:01:19.7]} 32... h4 {[%clk 0:00:51.7]} 33. Ra5 {[%clk 0:01:20.6]} 33...
h3 {[%clk 0:00:52.6]} 34. Rxa6 {[%clk 0:01:21.5]} 34... h2 {[%clk 0:00:52.1]}
35. Rxf6+ {[%clk 0:01:20.8]} 35... Kxf6 {[%clk 0:00:52.1]} 36. Nxb4 {[%clk
0:01:16.5]} 36... Kf5 {[%clk 0:00:53]} 37. a5 {[%clk 0:01:16.8]} 37... Kf4
{[%clk 0:00:52.6]} 38. a6 {[%clk 0:01:17.7]} 38... Kf3 {[%clk 0:00:52.3]} 39. a7
{[%clk 0:01:17.9]} 39... Ke2 {[%clk 0:00:53.2]} 40. Rc1 {[%clk 0:01:16]} 40...
Kd2 {[%clk 0:00:51.8]} 41. Rc3 {[%clk 0:01:14.1]} 41... Ke2 {[%clk 0:00:51.5]}
42. a8=Q {[%clk 0:01:11.6]} 42... Kf1 {[%clk 0:00:52]} 43. Qg2+ {[%clk
0:01:08.1]} 43... Ke2 {[%clk 0:00:31.3]} 44. Be3+ {[%clk 0:01:04.9]} 1-0

[Event "Late-Titled-Tuesday-Blitz-May-28-2024"]
[Site "Chess.com"]
[Date "2024.05.28"]
[Round "10"]
[White "DonMicheleCorleone"]
[Black "Karttunen"]
[Result "0-1"]
[WhiteElo "2516"]
[BlackElo "2676"]
[TimeControl "180+1"]
[EndTime "15:54:34 PDT"]
[Termination "Karttunen won by resignation"]

1. e4 {[%clk 0:03:00.9]} 1... c6 {[%clk 0:02:58.3]} 2. Nc3 {[%clk 0:02:58]} 2...
d5 {[%clk 0:02:58.4]} 3. Nf3 {[%clk 0:02:58.2]} 3... Bg4 {[%clk 0:02:56.9]} 4.
h3 {[%clk 0:02:57.8]} 4... Bxf3 {[%clk 0:02:56.7]} 5. Qxf3 {[%clk 0:02:57.8]}
5... e6 {[%clk 0:02:56.6]} 6. g3 {[%clk 0:02:57.8]} 6... Nd7 {[%clk 0:02:55.2]}
7. Bg2 {[%clk 0:02:57.9]} 7... Ngf6 {[%clk 0:02:55.1]} 8. O-O {[%clk 0:02:57.8]}
8... Bb4 {[%clk 0:02:53.9]} 9. d3 {[%clk 0:02:55.5]} 9... O-O {[%clk 0:02:51.5]}
10. Qe2 {[%clk 0:02:53.4]} 10... Bxc3 {[%clk 0:02:40.3]} 11. bxc3 {[%clk
0:02:53]} 11... dxe4 {[%clk 0:02:40.4]} 12. dxe4 {[%clk 0:02:51.8]} 12... e5
{[%clk 0:02:38.4]} 13. c4 {[%clk 0:02:19]} 13... Nc5 {[%clk 0:02:29.4]} 14. Bb2
{[%clk 0:02:17.2]} 14... Re8 {[%clk 0:02:19.4]} 15. Qe3 {[%clk 0:01:49.9]} 15...
Na4 {[%clk 0:02:11]} 16. Ba3 {[%clk 0:01:25.8]} 16... Qa5 {[%clk 0:02:04.2]} 17.
Rab1 {[%clk 0:01:16.5]} 17... Nb6 {[%clk 0:01:43.7]} 18. Qb3 {[%clk 0:01:02.8]}
18... Nxc4 {[%clk 0:01:34.8]} 19. Qxc4 {[%clk 0:00:53.3]} 19... Qxa3 {[%clk
0:01:33.4]} 20. Rxb7 {[%clk 0:00:53.4]} 20... Re6 {[%clk 0:01:28.1]} 21. h4
{[%clk 0:00:39.7]} 21... Rf8 {[%clk 0:01:26.9]} 22. Rd1 {[%clk 0:00:26.4]} 22...
Rd6 {[%clk 0:01:23.1]} 23. Rd3 {[%clk 0:00:09.7]} 23... Qc1+ {[%clk 0:01:18.3]}
24. Bf1 {[%clk 0:00:10.1]} 24... Re6 {[%clk 0:01:00.9]} 25. Rxa7 {[%clk
0:00:06.2]} 25... Qe1 {[%clk 0:00:59.3]} 26. Re3 {[%clk 0:00:04.7]} 26... Qa1
{[%clk 0:00:55.5]} 27. Qc3 {[%clk 0:00:04.1]} 27... Qd1 {[%clk 0:00:54.1]} 28.
Rd3 {[%clk 0:00:03]} 28... Qg4 {[%clk 0:00:52.8]} 29. f3 {[%clk 0:00:02.1]}
29... Qxg3+ {[%clk 0:00:52.7]} 30. Bg2 {[%clk 0:00:03]} 30... Nh5 {[%clk
0:00:52.5]} 31. Qd2 {[%clk 0:00:02.4]} 31... Nf4 {[%clk 0:00:50.9]} 32. Kf1
{[%clk 0:00:02.8]} 32... Nxd3 {[%clk 0:00:50.1]} 33. cxd3 {[%clk 0:00:03.3]}
33... Qxh4 {[%clk 0:00:45]} 34. Ke2 {[%clk 0:00:02.3]} 34... Rg6 {[%clk
0:00:43.6]} 35. Bf1 {[%clk 0:00:02.4]} 35... Qh2+ {[%clk 0:00:43]} 36. Ke3
{[%clk 0:00:03]} 36... Qg1+ {[%clk 0:00:43]} 0-1